bitfinex-derivatives/quotes_SOLF0:USTF0_20241212
["timestamp","ask_amount","ask_price","bid_price","bid_amount"]
[1733973764160,8.34204274,230.24,230.15,8.34204274]
[1733973764367,8.34204274,230.24,230.16,5.36604595]
[1733973764566,2.1702,230.22,230.15,8.34204274]
[1733973764764,2.1702,230.22,230.16,5.36585234]
[1733973764962,2.1702,230.22,230.15,8.34204274]
[1733973765164,2.1702,230.22,230.16,5.36599336]
[1733973765365,8.34204274,230.22,230.13,5.23137133]
[1733973765666,2.1704,230.2,230.14,5.36634908]
[1733973765870,2.1704,230.2,230.15,5.36634908]
[1733973766068,2.1704,230.2,230.13,15.74609907]
[1733973766566,2.1704,230.2,230.14,5.36716549]
[1733973766771,2.1704,230.2,230.13,15.74609907]
[1733973766971,2.1704,230.2,230.14,5.36761685]
[1733973767170,2.1704,230.2,230.13,15.74609907]
[1733973767369,2.1704,230.2,230.14,5.36742859]
[1733973767569,2.1704,230.2,230.13,15.74609907]
[1733973767776,2.1703,230.21,230.14,5.36740892]
[1733973767970,2.1703,230.21,230.15,5.36740892]
[1733973768167,2.1703,230.21,230.13,17.91709907]
[1733973769369,8.34204274,230.22,230.13,17.91709907]
[1733973769677,2.1704,230.2,230.13,15.74609907]
[1733973770277,10.51224274,230.22,230.13,17.91709907]
[1733973770575,8.34204274,230.22,230.13,17.91709907]
[1733973770970,2.1704,230.2,230.13,15.74609907]
[1733973772273,10.51244274,230.2,230.13,15.74609907]
[1733973772482,10.51264274,230.18,230.13,2.172685]
[1733973772774,8.34204274,230.18,230.13,2.172685]
[1733973773172,2.1708,230.16,230.13,2.172685]
[1733973773779,10.51284274,230.16,230.13,2.172685]
[1733973773975,8.34204274,230.14,230.13,2.172685]
[1733973774981,10.51294274,230.14,230.13,2.172685]
[1733973775579,8.34204274,230.14,230.13,2.172685]
[1733973776278,2.1711,230.13,230.04,6.1221]
[1733973776477,2.62,230.16,230.04,6.1221]
[1733973776478,8.34204274,230.07,230.05,5.36619846]
[1733973776879,8.34204274,230.07,229.99,10.96204274]
[1733973777084,8.34204274,230.05,230.0,5.36704844]
[1733973777283,8.34204274,230.05,230.01,5.36704844]
[1733973777483,8.34204274,230.05,229.99,2.1723]
[1733973777683,8.34204274,230.05,230.0,5.36541721]
[1733973777979,8.34204274,230.05,230.01,5.36541721]
[1733973778278,8.34204274,230.03,229.97,2.1725]
[1733973778483,8.34204274,230.03,229.98,5.36240099]
[1733973778683,8.34204274,230.05,229.99,5.36240099]
[1733973778883,10.51384274,230.05,229.98,10.51444274]
[1733973779184,10.51384274,230.05,229.99,5.36244375]
[1733973779384,10.51384274,230.05,229.98,10.51444274]
[1733973779686,10.51384274,230.05,229.99,5.35938918]
[1733973779989,10.51384274,230.05,229.98,10.51444274]
[1733973780182,10.51384274,230.05,229.99,5.35979804]
[1733973780377,8.34204274,230.03,229.93,2.696]
[1733973780578,8.34204274,229.99,229.94,5.35928387]
[1733973780784,8.34204274,229.99,229.95,5.35928387]
[1733973781079,8.34204274,229.99,229.96,5.35928387]
[1733973781385,8.34204274,229.97,229.84,8.34204274]
[1733973781588,8.34204274,229.91,229.85,5.36052283]
[1733973781886,8.34204274,229.91,229.86,5.36052283]
[1733973782186,2.62,229.97,229.82,8.34204274]
[1733973782187,8.34204274,229.89,229.82,8.34204274]
[1733973782389,8.34204274,229.91,229.84,8.34204274]
[1733973782589,8.34204274,229.93,229.86,8.34204274]
[1733973782784,2.62,229.96,229.87,5.35540226]
[1733973782981,8.34204274,229.94,229.88,5.35335272]
[1733973783186,2.62,229.96,229.84,17.29857562]
[1733973783387,11.9841741,229.98,229.85,5.34809934]
[1733973783680,14.6041741,229.98,229.86,5.34809934]
[1733973783886,14.6041741,229.98,229.87,5.34809934]
[1733973784081,14.6041741,229.98,229.88,5.34809934]
[1733973784279,11.9841741,229.91,229.84,5.31440152]
[1733973784479,11.9841741,229.91,229.85,5.34417474]
[1733973784686,11.9841741,229.91,229.83,4.34932103]
[1733973784687,14.1572741,229.91,229.83,4.34932103]
[1733973784882,11.9841741,229.91,229.83,4.34932103]
[1733973785390,11.9841741,229.91,229.83,2.17552103]
[1733973785591,11.9841741,229.91,229.83,4.34932103]
[1733973785786,11.9841741,229.91,229.83,2.17552103]
[1733973787388,2.1733,229.89,229.83,2.17552103]
[1733973788583,14.1573741,229.91,229.83,2.17552103]
[1733973789092,2.1732,229.9,229.82,5.09423704]
[1733973789685,2.62,229.93,229.78,1.3732]
[1733973789686,11.9841741,229.88,229.78,1.3732]
[1733973789987,11.9841741,229.82,229.67,2.62]
[1733973790189,11.9841741,229.82,229.7,1.3532]
[1733973790493,11.9841741,229.82,229.72,5.19562924]
[1733973792185,11.9841741,229.82,229.7,3.9732]
[1733973792388,11.9841741,229.82,229.71,5.2846307]
[1733973793286,11.9841741,229.85,229.71,5.2846307]
[1733973793491,11.9841741,229.85,229.77,2.1744]
[1733973794688,14.1578741,229.85,229.77,2.1744]
[1733973794894,11.9841741,229.85,229.75,2.1745]
[1733973796204,11.9841741,229.85,229.71,7.8846307]
[1733973796392,11.9841741,229.85,229.78,2.1743]
[1733973796592,11.9841741,229.85,229.71,7.8846307]
[1733973796593,1.4382,229.86,229.73,11.9841741]
[1733973796893,11.9841741,229.93,229.85,2.1736]
[1733973797095,14.7831741,229.96,229.82,11.9841741]
[1733973797293,11.9841741,229.96,229.82,11.9841741]
[1733973797493,11.9841741,229.96,229.83,6.73156072]
[1733973797700,11.9841741,229.96,229.84,5.29636072]
[1733973797897,11.9841741,229.96,229.88,2.1733]
[1733973798498,11.9841741,229.96,229.89,2.1733]
[1733973798697,14.1565741,229.99,229.86,2.6]
[1733973798895,2.1724,229.99,229.88,11.9841741]
[1733973799103,11.9841741,230.02,229.92,2.173]
[1733973799295,2.1722,230.01,229.92,2.173]
[1733973799499,11.9841741,230.02,229.88,11.9841741]
[1733973799700,11.9841741,230.02,229.89,5.29528368]
[1733973799891,11.9841741,230.02,229.9,5.29528368]
[1733973800095,16.7559741,230.05,229.91,5.29528368]
[1733973800296,14.1559741,230.05,229.92,9.35228368]
[1733973800497,14.1559741,230.05,229.93,5.29528368]
[1733973800698,14.1559741,230.05,229.94,5.29528368]
[1733973800994,14.1559741,230.05,229.95,5.29528368]
[1733973801199,14.1559741,230.05,229.92,4.057]
[1733973801399,11.9841741,230.05,229.96,2.1726]
[1733973801599,1.4473,230.07,229.94,11.9841741]
[1733973801808,1.4473,230.07,229.92,4.057]
[1733973801809,2.17325161,230.07,229.97,11.9841741]
[1733973802099,2.17325161,230.07,230.01,2.1721]
[1733973802299,2.17325161,230.07,229.98,2.6]
[1733973803099,2.17325161,230.07,230.02,2.172]
[1733973803598,2.1713,230.1,230.02,2.172]
[1733973804206,5.21006428,230.12,230.02,2.172]
[1733973805402,2.1712,230.11,230.0,14.1563741]
[1733973805597,11.9841741,230.11,230.01,5.31030406]
[1733973805801,11.9841741,230.11,229.97,11.9841741]
[1733973805998,11.9841741,230.11,229.98,7.9113243]
[1733973806200,11.9841741,230.11,229.99,5.3113243]
[1733973806396,11.9841741,230.08,229.95,1.4524]
[1733973806699,11.9841741,230.05,229.94,2.6]
[1733973806895,11.9841741,230.05,229.95,5.31736439]
[1733973807199,11.9841741,230.08,229.94,14.5841741]
[1733973807400,11.9841741,230.08,229.95,5.31824157]
[1733973807701,15.5833741,230.11,229.97,11.9841741]
[1733973808003,7.81006428,230.12,230.0,11.9841741]
[1733973808197,7.81006428,230.12,230.01,7.91926577]
[1733973808393,7.81006428,230.12,230.02,5.31926577]
[1733973808602,7.81006428,230.12,230.01,2.6]
[1733973808798,11.9841741,230.11,230.01,2.6]
[1733973809604,2.1715,230.08,230.01,2.6]
[1733973810007,2.1715,230.08,229.97,11.9841741]
[1733973810199,2.1713,230.1,230.01,2.1721]
[1733973810400,11.9841741,230.14,230.0,11.9841741]
[1733973810704,11.9841741,230.14,230.01,5.32436688]
[1733973810904,11.9841741,230.11,229.98,2.6]
[1733973811201,11.9841741,230.08,229.99,5.32480171]
[1733973811401,11.9841741,230.08,229.98,2.6]
[1733973812905,11.9841741,230.05,229.92,1.457]
[1733973813109,11.9841741,230.05,229.93,5.33539128]
[1733973813312,2.1723,230.0,229.92,4.057]
[1733973813507,2.7425,230.04,229.93,5.33711556]
[1733973813703,11.9841741,230.02,229.92,4.057]
[1733973813903,2.1723,229.99,229.92,4.057]
[1733973814209,11.9841741,230.02,229.92,4.057]
[1733973814510,14.1562741,230.02,229.94,2.1728]
[1733973814702,11.9841741,230.02,229.92,4.057]
[1733973814906,11.9841741,230.02,229.93,5.33880507]
[1733973815104,11.9841741,230.02,229.92,4.057]
[1733973815509,2.1723,230.0,229.93,5.34014841]
[1733973815700,2.1723,230.0,229.92,4.057]
[1733973815905,2.1723,230.0,229.92,2.6]
[1733973816500,2.1723,230.0,229.93,5.34042326]
[1733973816700,2.6,230.03,229.93,5.34042326]
[1733973816701,2.1721,230.02,229.94,5.34042326]
[1733973817001,2.1721,230.02,229.92,2.6]
[1733973817201,2.1721,230.02,229.93,5.34027744]
[1733973817411,2.1721,230.02,229.94,5.34027744]
[1733973817610,4.9144,230.04,229.96,2.1726]
[1733973817805,1.4045,230.04,229.97,5.34125068]
[1733973818001,1.4045,230.04,229.93,1.3678]
[1733973818203,2.1722,230.01,229.94,5.34176276]
[1733973818405,2.1722,230.01,229.95,5.34176276]
[1733973818608,1.4045,230.04,229.93,1.3678]
[1733973818906,1.4045,230.04,229.94,5.3454907]
[1733973819207,1.4045,230.04,229.95,5.3454907]
[1733973819408,1.4045,230.04,229.93,1.3678]
[1733973819610,1.4045,230.04,229.94,5.34694135]
[1733973819910,1.4045,230.04,229.95,5.34694135]
[1733973820207,1.4045,230.04,229.93,1.3678]
[1733973820407,2.172,230.03,229.94,7.52174746]
[1733973820605,1.4045,230.04,229.95,5.34865803]
[1733973820804,15.9929741,230.08,229.93,1.3678]
[1733973821007,2.1719,230.04,229.97,2.1725]
[1733973821306,13.3929741,230.08,229.98,5.34663268]
[1733973821511,13.3929741,230.08,229.94,11.9841741]
[1733973821714,13.3929741,230.08,229.95,5.34756638]
[1733973821905,1.4088,230.08,229.96,5.34756638]
[1733973822102,1.4088,230.08,229.97,5.34756638]
[1733973822409,1.4088,230.08,229.98,7.94756638]
[1733973822615,2.1716,230.07,229.99,2.1723]
[1733973825411,2.1718,230.05,229.97,2.1724]
[1733973825806,1.4088,230.08,229.96,2.6]
[1733973826010,2.6,230.1,229.96,2.6]
[1733973826214,11.9841741,230.11,229.97,11.9841741]
[1733973826407,1.3543,230.12,229.97,11.9841741]
[1733973827011,2.1713,230.1,229.98,5.34400804]
[1733973827211,2.1713,230.1,229.99,5.34400804]
[1733973827417,2.1713,230.1,229.97,11.9841741]
[1733973827715,2.1713,230.1,229.98,5.3424119]
[1733973827914,2.1713,230.1,229.97,11.9841741]
[1733973827915,2.1713,230.1,229.99,5.3424119]
[1733973828113,2.1714,230.09,230.02,2.172]
[1733973828513,2.1714,230.09,230.0,2.54]
[1733973829620,2.1714,230.09,230.01,2.1721]
[1733973830827,2.1714,230.09,229.93,1.3678]
[1733973830828,11.9841741,230.04,229.96,5.1852325]
[1733973831011,11.9841741,230.04,229.93,1.3678]
[1733973831318,11.9841741,230.01,229.91,4.713]
[1733973831518,11.9841741,230.01,229.91,2.54]
[1733973831918,2.1723,230.0,229.91,4.7131]
[1733973832417,11.9841741,230.01,229.91,4.7131]
[1733973832617,2.1724,229.99,229.91,4.7131]
[1733973833522,2.1724,229.99,229.91,2.1731]
[1733973833718,11.9841741,229.92,229.82,1.4175]
[1733973833921,11.9841741,229.92,229.84,5.17444323]
[1733973834117,2.54,229.96,229.84,5.17444323]
[1733973834317,11.9841741,229.97,229.87,2.1734]
[1733973835620,2.1727,229.96,229.87,2.1734]
[1733973835821,11.9841741,229.97,229.88,2.1733]
[1733973836023,11.9841741,229.97,229.88,4.7133]
[1733973837117,2.1723,230.0,229.9,2.1732]
[1733973837325,1.3754,230.02,229.89,11.9841741]
[1733973837826,2.1722,230.0,229.9,5.36485769]
[1733973838018,2.1722,230.0,229.91,5.36485769]
[1733973838220,2.1722,230.0,229.92,5.37023655]
[1733973838426,2.1722,230.0,229.89,11.9841741]
[1733973838627,2.1722,230.0,229.9,5.37023647]
[1733973838825,2.1725,229.97,229.91,5.37023647]
[1733973839021,2.1725,229.97,229.88,4.7133]
[1733973839327,11.9841741,230.0,229.89,5.3722001]
[1733973839625,11.9841741,230.0,229.88,2.54]
[1733973839626,2.1725,229.98,229.9,5.3722001]
[1733973839927,2.1725,229.98,229.91,5.3722001]
[1733973840227,2.1725,229.98,229.92,5.37939884]
[1733973840525,2.1725,229.97,229.88,4.7134]
[1733973840725,2.1725,229.97,229.84,5.17444323]
[1733973840726,11.9841741,229.97,229.89,5.37949041]
[1733973840923,11.9841741,229.94,229.79,11.9841741]
[1733973841119,2.1732,229.9,229.82,10.09553723]
[1733973841425,2.1732,229.9,229.83,13.12299041]
[1733973841625,1.4083,229.93,229.84,7.55533723]
[1733973841825,1.4083,229.93,229.85,5.38163723]
[1733973842118,1.4083,229.93,229.83,7.74135318]
[1733973842319,2.1731,229.91,229.84,5.3829282]
[1733973842521,2.1731,229.91,229.83,9.91515318]
[1733973842722,2.1731,229.91,229.85,5.382604]
[1733973843030,3.5812,229.93,229.86,5.382604]
[1733973843228,3.5812,229.93,229.87,5.382604]
[1733973843523,3.5812,229.93,229.83,7.74135318]
[1733973843524,11.9841741,229.97,229.88,5.38060821]
[1733973843723,11.9841741,229.97,229.89,5.38060821]
[1733973844029,11.9841741,229.97,229.83,7.74135318]
[1733973844220,11.9841741,229.97,229.84,5.37936492]
[1733973844425,1.4083,230.02,229.91,11.9841741]
[1733973844622,1.4083,230.02,229.92,7.91936492]
[1733973844932,1.4083,230.02,229.95,2.1727]
[1733973845133,1.4083,230.02,229.92,2.54]
[1733973845631,3.5804,230.02,229.93,5.37392183]
[1733973845835,1.3851,230.03,229.94,5.37392183]
[1733973846027,11.9841741,230.06,229.95,5.37392183]
[1733973846228,11.9841741,230.06,229.96,5.37392183]
[1733973846430,11.9841741,230.06,229.93,1.4569]
[1733973846830,2.8054,230.09,229.97,11.9841741]
[1733973847031,2.8054,230.09,229.98,5.37389221]
[1733973847233,2.8054,230.09,229.99,5.37389221]
[1733973847428,2.8054,230.09,230.0,5.37389221]
[1733973847635,2.8054,230.09,230.01,5.37389221]
[1733973847933,2.8054,230.09,230.02,5.37033899]
[1733973848135,4.9768,230.09,230.0,2.1722]
[1733973848328,4.9768,230.09,230.01,5.37025826]
[1733973848534,4.9768,230.09,230.0,2.1722]
[1733973848734,4.9768,230.09,230.02,5.37010272]
[1733973848932,4.9768,230.09,230.0,2.1722]
[1733973849133,4.9768,230.09,230.01,5.36970787]
[1733973849331,4.9768,230.09,230.02,5.36970787]
[1733973849532,4.9768,230.09,230.03,5.36970787]
[1733973849835,4.9768,230.09,230.0,2.1722]
[1733973850036,4.9768,230.09,230.01,5.3716293]
[1733973850232,4.9768,230.09,230.02,5.3716293]
[1733973850538,4.9768,230.09,230.0,2.1722]
[1733973850836,4.9768,230.09,230.01,5.37210651]
[1733973851034,4.9768,230.09,230.0,2.1722]
[1733973851332,4.9768,230.09,230.01,5.3725551]
[1733973851539,4.9768,230.09,230.0,2.1722]
[1733973851735,2.8054,230.09,229.98,2.54]
[1733973851934,2.8054,230.09,229.99,5.37357929]
[1733973852134,2.8054,230.09,229.94,13.4393741]
[1733973852335,11.9841741,230.07,229.95,2.54]
[1733973852533,2.1719,230.04,229.96,5.37513098]
[1733973852739,2.1719,230.04,229.97,5.37513098]
[1733973853035,2.1719,230.04,229.95,4.7127]
[1733973853340,2.1719,230.04,229.96,5.37740906]
[1733973853539,2.1719,230.04,229.97,5.37740906]
[1733973853745,2.1719,230.04,229.95,10.01888388]
[1733973853942,2.1719,230.04,229.96,5.37832947]
[1733973854142,2.1719,230.04,229.95,10.01888388]
[1733973854344,2.1719,230.04,229.96,5.37900918]
[1733973854542,2.1719,230.04,229.97,5.37887848]
[1733973854842,2.1719,230.04,229.95,10.01888388]
[1733973855243,2.1719,230.04,229.96,5.37868272]
[1733973855442,2.1717,230.06,229.97,7.55118272]
[1733973855641,2.1717,230.06,229.97,2.1725]
[1733973855849,5.3454,230.09,229.95,7.84618388]
[1733973856038,5.13620111,230.12,229.96,5.37654042]
[1733973856242,11.9841741,230.09,229.97,5.37654042]
[1733973856543,2.66,230.11,229.98,5.37654042]
[1733973856746,17.12037521,230.12,229.99,5.37654042]
[1733973856945,17.12037521,230.12,230.0,5.37654042]
[1733973857138,2.66,230.15,230.01,8.03402035]
[1733973857346,11.9841741,230.14,230.02,5.37402035]
[1733973857547,11.9841741,230.14,230.03,5.37402035]
[1733973857842,11.9841741,230.14,230.04,5.37402035]
[1733973858048,11.9841741,230.14,230.01,2.66]
[1733973858347,2.171,230.13,230.02,5.37100559]
[1733973858645,2.171,230.13,230.03,5.37100559]
[1733973858840,2.171,230.13,230.04,5.37100559]
[1733973859040,2.171,230.13,230.01,2.66]
[1733973859247,2.171,230.13,230.02,5.36949816]
[1733973859541,2.171,230.13,230.03,5.36949816]
[1733973859737,2.171,230.13,230.04,7.54129816]
[1733973859937,2.171,230.13,230.04,2.1718]
[1733973860743,5.13375175,230.16,230.01,2.66]
[1733973860744,1.4042,230.18,230.03,11.9841741]
[1733973860949,2.1706,230.17,230.06,11.9841741]
[1733973861145,2.1706,230.17,230.07,8.0254235]
[1733973861447,2.1706,230.17,230.08,5.36225861]
[1733973861646,1.4042,230.18,230.07,2.66]
[1733973861848,1.4042,230.18,230.08,5.36180683]
[1733973862046,1.4042,230.18,230.07,2.66]
[1733973862351,1.4042,230.18,230.08,5.36220492]
[1733973862548,1.4042,230.18,230.07,2.66]
[1733973862743,1.3923,230.19,230.07,2.66]
[1733973862950,11.9841741,230.2,230.07,2.66]
[1733973863149,11.9841741,230.2,230.08,5.35954552]
[1733973863447,5.12793538,230.21,230.07,2.66]
[1733973863643,2.1705,230.19,230.1,2.1713]
[1733973864551,11.9841741,230.2,230.08,2.1714]
[1733973865553,2.1709,230.15,230.07,5.12898626]
[1733973865852,11.9841741,230.17,230.07,5.12898626]
[1733973866053,11.9841741,230.17,230.06,2.64]
[1733973866350,2.1711,230.12,230.06,2.64]
[1733973867451,11.9841741,230.17,230.06,2.64]
[1733973867652,2.171,230.13,230.06,2.64]
[1733973868048,11.9841741,230.17,230.06,2.64]
[1733973868254,2.1709,230.15,230.06,4.8117]
[1733973868747,11.9841741,230.17,230.06,4.8117]
[1733973869750,2.1709,230.14,230.06,4.8117]
[1733973871751,2.1709,230.14,230.06,2.1717]
[1733973871955,2.1709,230.14,230.06,4.8117]
[1733973873449,2.171,230.13,230.06,4.8117]
[1733973874054,11.9841741,230.2,230.06,14.6241741]
[1733973874558,2.1704,230.2,230.11,2.1712]
[1733973874753,5.12793538,230.21,230.11,2.1712]
[1733973875356,2.8101,230.22,230.04,1.4467]
[1733973875357,1.4395,230.22,230.12,14.6241741]
[1733973875550,14.6241741,230.29,230.13,2.64]
[1733973875750,11.9841741,230.29,230.15,11.9841741]
[1733973875954,11.9841741,230.29,230.17,2.1705]
[1733973875955,2.1698,230.27,230.17,2.1705]
[1733973876157,2.1698,230.27,230.15,11.9841741]
[1733973877458,2.1698,230.27,230.14,1.356]
[1733973877459,2.7364,230.35,230.19,11.9841741]
[1733973877659,2.7364,230.35,230.22,11.9841741]
[1733973877854,2.7364,230.35,230.23,2.64]
[1733973878254,2.1692,230.33,230.23,4.81]
[1733973879265,2.1692,230.33,230.23,2.64]
[1733973879460,2.1692,230.33,230.24,2.1699]
[1733973883466,2.7364,230.35,230.25,11.9841741]
[1733973884563,1.3896,230.35,230.28,2.1695]
[1733973884762,1.3896,230.35,230.29,2.64]
[1733973885858,2.1688,230.36,230.29,2.64]
[1733973886060,2.1688,230.36,230.24,1.341]
[1733973886061,2.1691,230.34,230.28,2.56]
[1733973886261,11.9841741,230.37,230.28,2.56]
[1733973887362,11.9841741,230.37,230.27,2.56]
[1733973887967,5.25827621,230.38,230.24,6.67378409]
[1733973887968,2.1691,230.33,230.24,6.67378409]
[1733973888171,2.1691,230.33,230.26,2.56]
[1733973889366,11.9841741,230.37,230.26,2.56]
[1733973889569,2.1692,230.32,230.26,2.56]
[1733973890971,5.25827621,230.38,230.28,11.9841741]
[1733973891171,5.25827621,230.38,230.26,2.56]
[1733973892570,2.169,230.35,230.26,4.7297]
[1733973894665,2.1686,230.39,230.29,2.1695]
[1733973895272,2.1687,230.38,230.29,2.1695]
[1733973896276,2.1686,230.39,230.3,2.1693]
[1733973896476,2.1686,230.39,230.3,14.1534741]
[1733973898170,2.1687,230.38,230.3,14.1534741]
[1733973898673,2.1687,230.38,230.31,2.56]
[1733973899976,17.12387772,230.43,230.3,11.9841741]
[1733973900474,11.9841741,230.4,230.29,2.56]
[1733973900881,11.9841741,230.4,230.24,18.65795819]
[1733973901072,2.1693,230.32,230.25,5.32347032]
[1733973901267,1.4014,230.39,230.27,11.9841741]
[1733973901778,5.13970362,230.43,230.3,11.9841741]
[1733973901779,2.1687,230.38,230.3,11.9841741]
[1733973904877,2.1688,230.37,230.3,11.9841741]
[1733973905370,11.9841741,230.42,230.27,11.9841741]
[1733973905573,2.1688,230.36,230.28,4.7296]
[1733973907174,1.3289,230.45,230.28,2.56]
[1733973907378,2.1687,230.38,230.31,2.1692]
[1733973907985,17.12358663,230.44,230.29,2.1694]
[1733973908483,2.1689,230.36,230.29,2.1694]
[1733973908681,17.12358663,230.44,230.28,2.56]
[1733973908682,11.9841741,230.41,230.28,2.56]
[1733973909079,2.1689,230.36,230.28,2.56]
[1733973909479,2.1689,230.36,230.28,4.7295]
[1733973910074,11.9841741,230.44,230.28,2.56]
[1733973910276,1.3289,230.45,230.31,11.9841741]
[1733973910681,1.3289,230.45,230.28,2.56]
[1733973910975,1.3289,230.45,230.31,11.9841741]
[1733973911176,2.1685,230.4,230.31,2.1692]
[1733973911384,1.3289,230.45,230.29,11.9841741]
[1733973911575,11.9841741,230.43,230.29,11.9841741]
[1733973911780,11.9841741,230.43,230.26,11.9841741]
[1733973911980,6.62099694,230.45,230.32,11.9841741]
[1733973912181,6.62099694,230.45,230.35,11.9841741]
[1733973912383,2.1682,230.43,230.36,2.86]
[1733973913776,1.3289,230.45,230.36,2.86]
[1733973914581,3.4969,230.45,230.36,2.86]
[1733973914875,1.3289,230.45,230.36,2.86]
[1733973917285,8.332436,230.44,230.36,11.192436]
[1733973918382,47.84468251,230.56,230.35,2.86]
[1733973918585,4.0986,230.55,230.43,8.332436]
[1733973918784,8.332436,230.51,230.43,8.332436]
[1733973919393,4.0986,230.55,230.43,8.332436]
[1733973919694,8.332436,230.51,230.43,8.332436]
[1733973920190,45.12,230.71,230.45,8.332436]
[1733973920390,8.332436,230.55,230.47,8.332436]
[1733973920694,8.332436,230.51,230.44,2.1681]
[1733973920897,8.332436,230.51,230.43,11.392436]
[1733973921091,8.332436,230.52,230.43,11.392436]
[1733973921893,8.332436,230.52,230.44,5.3374413]
[1733973922093,1.427,230.57,230.45,13.66924539]
[1733973922288,8.332436,230.52,230.45,8.332436]
[1733973922893,1.427,230.57,230.45,8.332436]
[1733973923089,8.332436,230.55,230.47,8.332436]
[1733973923291,1.427,230.57,230.47,8.332436]
[1733973923497,8.332436,230.55,230.47,8.332436]
[1733973923696,2.778,230.61,230.49,8.332436]
[1733973923992,8.332436,230.56,230.5,3.06]
[1733973924195,181.30921369,230.81,230.55,8.332436]
[1733973924394,8.332436,230.64,230.55,11.392436]
[1733973924591,8.332436,230.62,230.55,11.392436]
[1733973924799,8.332436,230.62,230.43,2.1681]
[1733973924994,8.332436,230.62,230.53,8.332436]
[1733973925194,8.332436,230.62,230.53,11.392436]
[1733973926198,8.332436,230.62,230.53,3.06]
[1733973926504,8.332436,230.62,230.54,8.332436]
[1733973926801,8.332436,230.62,230.53,3.06]
[1733973926802,10.498836,230.62,230.53,3.06]
[1733973927005,10.498836,230.62,230.53,11.392436]
[1733973927902,8.332436,230.63,230.55,8.332436]
[1733973930810,10.498736,230.63,230.55,8.332436]
[1733973931401,8.332436,230.63,230.55,8.332436]
[1733973931903,8.332436,230.61,230.53,3.06]
[1733973932101,8.332436,230.61,230.53,11.392436]
[1733973932303,8.332436,230.61,230.52,8.14067485]
[1733973932498,1.4064,230.66,230.53,8.332436]
[1733973932702,8.332436,230.61,230.53,8.332436]
[1733973932908,1.4064,230.66,230.55,8.332436]
[1733973933103,8.332436,230.62,230.55,8.332436]
[1733973933903,2.1662,230.65,230.57,8.332436]
[1733973934099,8.332436,230.66,230.59,8.332436]
[1733973935509,2.166,230.67,230.59,8.332436]
[1733973935699,47.81390088,230.72,230.59,8.332436]
[1733973936005,8.332436,230.69,230.61,8.332436]
[1733973937612,8.332436,230.67,230.61,8.332436]
[1733973937907,8.332436,230.64,230.53,5.8938]
[1733973938113,8.332436,230.64,230.56,8.332436]
[1733973938407,8.332436,230.66,230.58,8.332436]
[1733973939215,6.73471261,230.71,230.58,8.332436]
[1733973939510,8.332436,230.69,230.62,8.332436]
[1733973939705,6.73471261,230.71,230.62,8.332436]
[1733973939906,2.1658,230.69,230.62,8.332436]
[1733973940107,1.4224,230.71,230.62,8.332436]
[1733973940308,8.332436,230.74,230.66,8.332436]
[1733973940611,2.1653,230.75,230.66,8.332436]
[1733973940812,8.332436,230.74,230.66,8.332436]
[1733973941014,8.332436,230.74,230.66,11.392436]
[1733973941213,1.3714,230.79,230.66,3.06]
[1733973941407,8.332436,230.71,230.66,3.06]
[1733973941810,8.332436,230.73,230.66,11.392436]
[1733973942207,8.332436,230.72,230.66,11.392436]
[1733973942814,2.1654,230.73,230.66,11.392436]
[1733973943015,10.497936,230.72,230.66,11.392436]
[1733973944308,8.332436,230.74,230.66,3.06]
[1733973944616,2.1656,230.71,230.66,3.06]
[1733973945022,8.332436,230.72,230.66,3.06]
[1733973945513,8.332436,230.72,230.49,5.28240567]
[1733973945514,8.332436,230.68,230.53,2.7252]
[1733973945716,2.1662,230.64,230.58,8.332436]
[1733973945912,8.332436,230.66,230.58,8.332436]
[1733973946110,8.332436,230.66,230.59,3.06]
[1733973947119,8.332436,230.66,230.6,8.332436]
[1733973947621,2.1662,230.64,230.6,8.332436]
[1733973947814,8.332436,230.68,230.6,8.332436]
[1733973948215,2.1658,230.69,230.6,8.332436]
[1733973948411,10.498236,230.69,230.62,8.332436]
[1733973949118,8.332436,230.71,230.62,8.332436]